fUST/lending_fUST_20240413
["ID","MTS","AMOUNT","RATE_DAILY","PERIOD"]
[322443616,1713007841464,-511.08378586,0.0003589,7]
[322443617,1713007841476,-500.0,0.0003589,7]
[322443618,1713007841486,-285.86260697,0.0003589,7]
[322443619,1713007841497,-500.0,0.0003589,7]
[322443620,1713007841508,-1570.57,0.0003589,7]
[322443621,1713007841522,-500.0,0.0003589,7]
[322443622,1713007841532,-500.0,0.0003589,7]
[322443623,1713007841543,-500.0,0.0003589,7]
[322443624,1713007841553,-510.0202289,0.0003589,7]
[322443625,1713007841564,-500.0,0.0003589,7]
[322443626,1713007841573,-500.0,0.0003589,7]
[322443627,1713007841587,-500.0,0.0003589,7]
[322443628,1713007841597,-500.0,0.0003589,7]
[322443629,1713007841607,-839.17,0.0003589,7]
[322443630,1713007841618,-500.0,0.0003589,7]
[322443631,1713007841629,-500.0,0.0003589,7]
[322443632,1713007841639,-2212.74,0.0003589,7]
[322443633,1713007841650,-897.62,0.0003589,7]
[322443634,1713007841661,-500.0,0.0003589,7]
[322443635,1713007841671,-500.0,0.0003589,7]
[322443636,1713007841681,-500.0,0.0003589,7]
[322443637,1713007841691,-500.0,0.0003589,7]
[322443638,1713007841703,-500.0,0.0003589,7]
[322443639,1713007841714,-500.0,0.0003589,7]
[322443640,1713007841723,-500.0,0.0003589,7]
[322443641,1713007841733,-500.0,0.0003589,7]
[322443642,1713007841742,-500.0,0.0003589,7]
[322443643,1713007841752,-500.0,0.0003589,7]
[322443644,1713007841762,-500.0,0.0003589,7]
[322443645,1713007841773,-500.0,0.0003589,7]
[322443646,1713007841783,-500.0,0.0003589,7]
[322443647,1713007841794,-3808.76,0.0003589,7]
[322443648,1713007841804,-998.68,0.0003589,7]
[322443649,1713007841813,-580.57,0.0003589,7]
[322443650,1713007841823,-1316.29,0.0003589,7]
[322443651,1713007841833,-500.0,0.0003589,7]
[322443652,1713007841842,-500.0,0.0003589,7]
[322443653,1713007841851,-500.0,0.0003589,7]
[322443654,1713007841862,-500.0,0.0003589,7]
[322443655,1713007841872,-573.62,0.0003589,7]
[322443656,1713007841882,-500.0,0.0003589,7]
[322443657,1713007841891,-942.03,0.0003589,7]
[322443658,1713007841901,-500.0,0.0003589,7]
[322443659,1713007841912,-500.0,0.0003589,7]
[322443660,1713007841922,-506.29659651,0.0003589,7]
[322443661,1713007841932,-684.91,0.0003589,7]
[322443662,1713007841942,-500.0,0.0003589,7]
[322443663,1713007841952,-500.0,0.0003589,7]
[322443664,1713007841961,-1103.25,0.0003589,7]
[322443665,1713007841970,-500.0,0.0003589,7]
[322443666,1713007841979,-500.0,0.0003589,7]
[322443667,1713007841989,-1223.02,0.0003589,7]
[322443668,1713007841999,-500.0,0.0003589,7]
[322443669,1713007842009,-2402.1,0.0003589,7]
[322443670,1713007842022,-777.41,0.0003589,7]
[322443671,1713007842034,-951.92,0.0003589,7]
[322443672,1713007842044,-500.0,0.0003589,7]
[322443673,1713007842054,-2489.22,0.0003589,7]
[322443674,1713007842064,-500.0,0.0003589,7]
[322443675,1713007842074,-596.73271941,0.0003589,7]
[322443676,1713007842083,-500.0,0.0003589,7]
[322443677,1713007842092,-2831.23,0.0003589,7]
[322443678,1713007842102,-500.0,0.0003589,7]
[322443679,1713007842111,-839.49,0.0003589,7]
[322443680,1713007842121,-2262.94,0.0003589,7]
[322443681,1713007842130,-500.0,0.0003589,7]
[322443682,1713007842139,-500.0,0.0003589,7]
[322443683,1713007842148,-500.0,0.0003589,7]
[322443684,1713007842157,-835.48,0.0003589,7]
[322443685,1713007842166,-9788.51,0.0003589,7]
[322443686,1713007842175,-500.0,0.0003589,7]
[322443687,1713007842185,-500.0,0.0003589,7]
[322443689,1713007842194,-1038.23,0.0003589,7]
[322443690,1713007842203,-2045.5,0.0003589,7]
[322443691,1713007842213,-1066.09,0.0003589,7]
[322443692,1713007842222,-1282.83,0.0003589,7]
[322443693,1713007842231,-500.0,0.0003589,7]
[322443694,1713007842240,-500.0,0.0003589,7]
[322443695,1713007842249,-500.0,0.0003589,7]
[322443696,1713007842259,-500.0,0.0003589,7]
[322443697,1713007842270,-500.0,0.0003589,7]
[322443698,1713007842279,-500.0,0.0003589,7]
[322443699,1713007842287,-500.0,0.0003589,7]
[322443700,1713007842296,-500.0,0.0003589,7]
[322443701,1713007842306,-671.87,0.0003589,7]
[322443702,1713007842315,-601.66,0.0003589,7]
[322443703,1713007842324,-500.0,0.0003589,7]
[322443704,1713007842333,-732.44,0.0003589,7]
[322443705,1713007842342,-31596.71,0.0003589,7]
[322443706,1713007842351,-500.0,0.0003589,7]
[322443707,1713007842360,-1010.79,0.0003589,7]
[322443708,1713007842369,-500.0,0.0003589,7]
[322443709,1713007842378,-1137.1,0.0003589,7]
[322443710,1713007842388,-2378.96,0.0003589,7]
[322443711,1713007842399,-500.0,0.0003589,7]
[322443712,1713007842409,-500.0,0.0003589,7]
[322443713,1713007842419,-500.0,0.0003589,7]
[322443714,1713007842427,-500.0,0.0003589,7]
[322443715,1713007842437,-500.0,0.0003589,7]
[322443716,1713007842446,-500.0,0.0003589,7]
[322443717,1713007842455,-2154.87,0.0003589,7]
[322443718,1713007842464,-1003.13,0.0003589,7]
[322443719,1713007842473,-3578.96,0.0003589,7]
[322443720,1713007842483,-1288.06,0.0003589,7]
[322443721,1713007842492,-500.0,0.0003589,7]
[322443722,1713007842501,-500.0,0.0003589,7]
[322443723,1713007842509,-561.31233867,0.0003589,7]
[322443724,1713007842523,-1325.95,0.0003589,7]
[322443725,1713007842533,-704.37,0.0003589,7]
[322443726,1713007842542,-6337.44,0.0003589,7]
[322443727,1713007842552,-1690.5,0.0003589,2]
[322443728,1713007842560,-500.0,0.0003589,7]
[322443729,1713007842570,-20335.2507,0.00035972,30]
[322443730,1713007842583,-500.0,0.0003601,7]
[322443731,1713007842592,-620.00245985,0.00036118,2]
[322443732,1713007842602,-151.0,0.00036163,2]
[322443733,1713007842612,-503.32067083,0.00036164,7]
[322443734,1713007842623,-500.0,0.00036164,7]
[322443735,1713007842633,-682.67,0.00036164,7]
[322443736,1713007842642,-209.69412608,0.00036164,7]
[322443737,1713007842653,-364.05256396,0.00036164,7]
[322443738,1713007842663,-1570.57,0.00036164,7]
[322443739,1713007842672,-500.0,0.00036164,7]
[322443740,1713007842681,-500.0,0.00036164,7]
[322443741,1713007842691,-500.0,0.00036164,7]
[322443742,1713007842700,-500.0,0.00036164,7]
[322443743,1713007842709,-500.0,0.00036164,7]
[322443744,1713007842718,-197.6557534,0.00036164,7]
[322443745,1713007842727,-500.0,0.00036164,7]
[322443746,1713007842736,-839.17,0.00036164,7]
[322443747,1713007842745,-500.0,0.00036164,7]
[322443748,1713007842754,-503.4515301,0.00036164,7]
[322443749,1713007842765,-2212.74,0.00036164,7]
[322443752,1713007842869,-897.62,0.00036164,7]
[322443753,1713007842879,-500.0,0.00036164,7]
[322443754,1713007842889,-500.0,0.00036164,7]
[322443755,1713007842898,-500.0,0.00036164,7]
[322443756,1713007842907,-500.0,0.00036164,7]
[322443757,1713007842917,-500.0,0.00036164,7]
[322443758,1713007842926,-500.0,0.00036164,7]
[322443759,1713007842936,-500.0,0.00036164,7]
[322443760,1713007842945,-500.0,0.00036164,7]
[322443761,1713007842954,-500.0,0.00036164,7]
[322443762,1713007842963,-500.0,0.00036164,7]
[322443763,1713007842973,-500.0,0.00036164,7]
[322443764,1713007842982,-500.0,0.00036164,7]
[322443765,1713007842991,-500.0,0.00036164,7]
[322443766,1713007843001,-3808.76,0.00036164,7]
[322443767,1713007843010,-998.68,0.00036164,7]
[322443768,1713007843020,-580.57,0.00036164,7]
[322443769,1713007843030,-1316.29,0.00036164,7]
[322443770,1713007843039,-500.0,0.00036164,7]
[322443771,1713007843049,-500.0,0.00036164,7]
[322443772,1713007843058,-500.0,0.00036164,7]
[322443774,1713007843067,-500.0,0.00036164,7]
[322443775,1713007843076,-573.62,0.00036164,7]
[322443776,1713007843087,-507.16326243,0.00036164,7]
[322443777,1713007843096,-942.03,0.00036164,7]
[322443779,1713007843105,-500.0,0.00036164,7]
[322443780,1713007843115,-275.00288816,0.00036164,7]
[322443781,1713007843125,-684.91,0.00036164,7]
[322443782,1713007843136,-500.0,0.00036164,7]
[322443783,1713007843147,-500.0,0.00036164,7]
[322443784,1713007843157,-1103.25,0.00036164,7]
[322443785,1713007843167,-500.0,0.00036164,7]
[322443787,1713007843178,-507.15966959,0.00036164,7]
[322443788,1713007843188,-1223.02,0.00036164,7]
[322443789,1713007843198,-500.0,0.00036164,7]
[322443790,1713007843209,-2402.1,0.00036164,7]
[322443791,1713007843219,-777.41,0.00036164,7]
[322443792,1713007843228,-951.92,0.00036164,7]
[322443793,1713007843239,-500.0,0.00036164,7]
[322443794,1713007843248,-2489.22,0.00036164,7]
[322443795,1713007843258,-500.0,0.00036164,7]
[322443796,1713007843270,-500.0,0.00036164,7]
[322443797,1713007843280,-2831.23,0.00036164,7]
[322443798,1713007843291,-500.0,0.00036164,7]
[322443799,1713007843301,-839.49,0.00036164,7]
[322443800,1713007843313,-2262.94,0.00036164,7]
[322443801,1713007843323,-500.0,0.00036164,7]
[322443802,1713007843333,-500.0,0.00036164,7]
[322443803,1713007843342,-500.0,0.00036164,7]
[322443804,1713007843353,-835.48,0.00036164,7]
[322443805,1713007843364,-9788.51,0.00036164,7]
[322443806,1713007843374,-500.0,0.00036164,7]
[322443807,1713007843385,-500.0,0.00036164,7]
[322443808,1713007843395,-1038.23,0.00036164,7]
[322443809,1713007843406,-2045.5,0.00036164,7]
[322443810,1713007843417,-1066.09,0.00036164,7]
[322443811,1713007843426,-1282.83,0.00036164,7]
[322443812,1713007843438,-500.0,0.00036164,7]
[322443813,1713007843448,-500.0,0.00036164,7]
[322443814,1713007843459,-500.0,0.00036164,7]
[322443815,1713007843469,-500.0,0.00036164,7]
[322443816,1713007843479,-500.0,0.00036164,7]
[322443817,1713007843490,-500.0,0.00036164,7]
[322443818,1713007843498,-500.0,0.00036164,7]
[322443819,1713007843508,-500.0,0.00036164,7]
[322443820,1713007843518,-601.66,0.00036164,7]
[322443821,1713007843526,-671.87,0.00036164,7]
[322443822,1713007843535,-500.0,0.00036164,7]
[322443823,1713007843544,-732.44,0.00036164,7]
[322443824,1713007843553,-31596.71,0.00036164,7]
[322443825,1713007843563,-500.0,0.00036164,7]
[322443826,1713007843573,-1010.79,0.00036164,7]
[322443827,1713007843583,-500.0,0.00036164,7]
[322443828,1713007843594,-1137.1,0.00036164,7]
[322443829,1713007843603,-2378.96,0.00036164,7]
[322443830,1713007843612,-514.42647175,0.00036164,7]
[322443831,1713007843623,-500.0,0.00036164,7]
[322443832,1713007843633,-500.0,0.00036164,7]
[322443833,1713007843643,-500.0,0.00036164,7]
[322443834,1713007843652,-500.0,0.00036164,7]
[322443835,1713007843662,-505.65981487,0.00036164,7]
[322443836,1713007843672,-1613.99046997,0.00036164,7]
[322443837,1713007843823,-708.81,0.00035616,7]
[322443838,1713007843833,-708.81,0.0003589,7]
[322443839,1713007843843,-540.87953003,0.00036164,7]
[322443840,1713007843852,-1003.13,0.00036164,7]
[322443841,1713007843861,-3578.96,0.00036164,7]
[322443842,1713007843870,-1288.06,0.00036164,7]
[322443843,1713007843879,-531.47615678,0.00036164,7]
[322443844,1713007843889,-500.0,0.00036164,7]
[322443845,1713007843898,-1325.95,0.00036164,7]
[322443846,1713007843907,-704.37,0.00036164,7]
[322443847,1713007843916,-6337.44,0.00036164,7]
[322443848,1713007843926,-1690.5,0.00036164,2]
[322443849,1713007843935,-500.0,0.00036164,7]
[322443850,1713007843945,-151.0,0.00036164,2]
[322443851,1713007843954,-708.81,0.00036164,7]
[322443852,1713007843964,-151.0,0.00036164,2]
[322443853,1713007843973,-3084.91609567,0.00036338,2]
[322443854,1713007843982,-500.0,0.00036438,7]
[322443855,1713007843992,-682.67,0.00036438,7]
[322443856,1713007844001,-1570.57,0.00036438,7]
[322443857,1713007844010,-500.0,0.00036438,7]
[322443858,1713007844020,-500.0,0.00036438,7]
[322443859,1713007844030,-500.0,0.00036438,7]
[322443860,1713007844039,-509.57875445,0.00036438,7]
[322443861,1713007844048,-500.0,0.00036438,7]
[322443862,1713007844057,-500.0,0.00036438,7]
[322443863,1713007844066,-839.17,0.00036438,7]
[322443864,1713007844079,-500.0,0.00036438,7]
[322443865,1713007844094,-561.933922,0.00036438,2]
[322443866,1713007844106,-151.0,0.00036438,2]
[322443867,1713007844119,-2212.74,0.00036438,7]
[322443868,1713007844129,-151.0,0.00036438,2]
[322443869,1713007844139,-561.933922,0.00036438,2]
[322443870,1713007844152,-897.62,0.00036438,7]
[322443871,1713007844164,-151.0,0.00036438,2]
[322443872,1713007844175,-500.0,0.00036438,7]
[322443873,1713007844187,-500.0,0.00036438,7]
[322443874,1713007844200,-500.0,0.00036438,7]
[322443875,1713007844212,-585.30269564,0.00036438,7]
[322443876,1713007844223,-211.326433,0.00036438,2]
[322443877,1713007844233,-211.326433,0.00036438,2]
[322443878,1713007844244,-151.0,0.00036438,2]
[322443879,1713007844256,-151.0,0.00036438,2]
[322443880,1713007844269,-500.0,0.00036438,7]
[322443881,1713007844280,-500.0,0.00036438,7]
[322443882,1713007844291,-500.0,0.00036438,7]
[322443883,1713007844303,-500.0,0.00036438,7]
[322443884,1713007844315,-500.0,0.00036438,7]
[322443885,1713007844329,-500.0,0.00036438,7]
[322443886,1713007844341,-500.0,0.00036438,7]
[322443887,1713007844353,-948.881445,0.00036438,2]
[322443888,1713007844363,-500.0,0.00036438,7]
[322443889,1713007844373,-500.0,0.00036438,7]
[322443890,1713007844388,-948.881445,0.00036438,2]
[322443891,1713007844400,-3808.76,0.00036438,7]
[322443892,1713007844411,-998.68,0.00036438,7]
[322443893,1713007844424,-151.0,0.00036438,2]
[322443894,1713007844435,-580.57,0.00036438,7]
[322443895,1713007844446,-151.0,0.00036438,2]
[322443896,1713007844456,-151.0,0.00036438,2]
[322443897,1713007844468,-1316.29,0.00036438,7]
[322443898,1713007844480,-500.0,0.00036438,7]
[322443899,1713007844492,-546.28470889,0.00036438,7]
[322443900,1713007844503,-519.91213259,0.00036438,7]
[322443901,1713007844516,-500.0,0.00036438,7]
[322443902,1713007844528,-573.62,0.00036438,7]
[322443903,1713007844539,-942.03,0.00036438,7]
[322443904,1713007844552,-1940.454566,0.00036438,2]
[322443905,1713007844565,-754.71829815,0.00036438,2]
[322443906,1713007844580,-1185.73626785,0.00036438,2]
[322443907,1713007844594,-1502.19530477,0.00036438,2]
[322443937,1713008213560,247715.35717524,0.00037604,30]
[322443938,1713008240684,22733.23070734,0.00037604,30]
[322444010,1713009039558,-163.8615962,0.00027396,2]
[322444013,1713009039567,-172.061539,0.00027397,2]
[322444016,1713009039577,-174.638459,0.00027397,2]
[322444017,1713009039586,-176.36933,0.00033224,2]
[322444018,1713009039596,-155.96001844,0.00033833,4]
[322444020,1713009039605,-477.0832747,0.00033926,2]
[322444021,1713009039614,-400.0,0.0003396,2]
[322444022,1713009039623,-8352.9569715,0.00033961,2]
[322444023,1713009039632,-48.56834347,0.00034392,2]
[322444024,1713009039643,-127.43422253,0.00034392,2]
[322444026,1713009039652,-154.9721438,0.00035344,7]
[322444027,1713009039663,-605.1518033,0.00035504,2]
[322444028,1713009039672,-167.56865632,0.00035516,2]
[322444029,1713009039695,-2000.0,0.000356,8]
[322444030,1713009039705,-2000.0,0.000356,9]
[322444031,1713009039715,-2000.0,0.000356,11]
[322444032,1713009039725,-2000.0,0.000356,12]
[322444033,1713009039735,-2000.0,0.000356,13]
[322444034,1713009039745,-3966.96974398,0.00035615,2]
[322444035,1713009039755,-1540.25647423,0.00035615,4]
[322444036,1713009039765,-319.0,0.00035616,2]
[322444037,1713009039776,-500.0,0.00035616,7]
[322444038,1713009039788,-197.6557534,0.00035616,7]
[322444039,1713009039798,-734.28,0.00035616,7]
[322444040,1713009039809,-500.0,0.00035616,7]
[322444041,1713009039819,-500.0,0.00035616,7]
[322444042,1713009039830,-500.0,0.00035616,7]
[322444043,1713009039840,-500.0,0.00035616,7]
[322444044,1713009039850,-915.46,0.00035616,7]
[322444045,1713009039860,-500.0,0.00035616,7]
[322444046,1713009039870,-500.0,0.00035616,7]
[322444047,1713009039879,-500.0,0.00035616,7]
[322444048,1713009039889,-500.0,0.00035616,7]
[322444050,1713009039903,-1549.62,0.00035616,2]
[322444052,1713009039913,-500.0,0.00035616,7]
[322444054,1713009039922,-500.0,0.00035616,7]
[322444055,1713009039931,-500.0,0.00035616,7]
[322444056,1713009039942,-500.0,0.00035616,7]
[322444057,1713009039952,-277.39,0.00035616,2]
[322444058,1713009039962,-500.0,0.00035616,7]
[322444059,1713009039974,-2028.34,0.00035616,7]
[322444060,1713009039983,-822.82,0.00035616,7]
[322444061,1713009039993,-1070.14,0.00035616,7]
[322444062,1713009040002,-500.0,0.00035616,7]
[322444063,1713009040012,-500.0,0.00035616,7]
[322444064,1713009040022,-596.73271941,0.00035616,7]
[322444065,1713009040031,-500.0,0.00035616,7]
[322444066,1713009040041,-500.0,0.00035616,7]
[322444067,1713009040051,-500.0,0.00035616,7]
[322444068,1713009040060,-500.0,0.00035616,7]
[322444069,1713009040070,-500.0,0.00035616,7]
[322444070,1713009040081,-500.0,0.00035616,7]
[322444071,1713009040090,-500.0,0.00035616,7]
[322444072,1713009040099,-500.0,0.00035616,7]
[322444073,1713009040110,-500.0,0.00035616,7]
[322444074,1713009040120,-500.0,0.00035616,7]
[322444075,1713009040129,-500.0,0.00035616,7]
[322444076,1713009040139,-500.0,0.00035616,7]
[322444077,1713009040148,-500.0,0.00035616,7]
[322444078,1713009040157,-500.0,0.00035616,7]
[322444079,1713009040167,-500.0,0.00035616,7]
[322444080,1713009040176,-500.0,0.00035616,7]
[322444081,1713009040185,-500.0,0.00035616,7]
[322444082,1713009040195,-3491.37,0.00035616,7]
[322444083,1713009040204,-500.0,0.00035616,7]
[322444084,1713009040213,-532.19,0.00035616,7]
[322444085,1713009040222,-3538.76,0.00035616,7]
[322444086,1713009040231,-500.0,0.00035616,7]
[322444087,1713009040241,-1206.6,0.00035616,7]
[322444088,1713009040250,-500.0,0.00035616,7]
[322444089,1713009040259,-500.0,0.00035616,7]
[322444090,1713009040269,-525.82,0.00035616,7]
[322444091,1713009040279,-500.0,0.00035616,7]
[322444092,1713009040288,-645.68,0.00035616,7]
[322444093,1713009040297,-863.53,0.00035616,7]
[322444094,1713009040306,-500.0,0.00035616,7]
[322444095,1713009040316,-500.0,0.00035616,7]
[322444096,1713009040326,-500.0,0.00035616,7]
[322444097,1713009040335,-500.0,0.00035616,7]
[322444098,1713009040345,-500.0,0.00035616,7]
[322444099,1713009040355,-506.29659651,0.00035616,7]
[322444100,1713009040364,-500.0,0.00035616,7]
[322444101,1713009040373,-625.79,0.00035616,7]
[322444102,1713009040382,-285.86260697,0.00035616,7]
[322444103,1713009040392,-500.0,0.00035616,7]
[322444104,1713009040401,-500.0,0.00035616,7]
[322444105,1713009040410,-500.0,0.00035616,7]
[322444106,1713009040419,-3678.60653868,0.00035616,7]
[322444107,1713009040433,-2130.71346132,0.00035616,7]
[322444108,1713009040442,-656.38,0.00035616,7]
[322444109,1713009040451,-620.2,0.00035616,7]
[322444110,1713009040460,-1057.28,0.00035616,7]
[322444111,1713009040470,-511.08378586,0.00035616,7]
[322444112,1713009040479,-2302.01,0.00035616,7]
[322444113,1713009040488,-500.0,0.00035616,7]
[322444114,1713009040497,-2713.26,0.00035616,7]
[322444115,1713009040508,-500.0,0.00035616,7]
[322444116,1713009040518,-500.0,0.00035616,7]
[322444117,1713009040527,-500.0,0.00035616,7]
[322444118,1713009040536,-500.0,0.00035616,7]
[322444119,1713009040545,-500.0,0.00035616,7]
[322444120,1713009040555,-912.26,0.00035616,7]
[322444121,1713009040564,-745.02,0.00035616,7]
[322444122,1713009040572,-845.09,0.00035616,7]
[322444123,1713009040583,-843.46,0.00035616,7]
[322444124,1713009040592,-578.42302313,0.00035616,7]
[322444125,1713009040601,-2168.65,0.00035616,7]
[322444126,1713009040611,-2385.5,0.00035616,7]
[322444127,1713009040621,-619.98389421,0.00035616,7]
[322444128,1713009040630,-500.0,0.00035616,7]
[322444129,1713009040640,-500.0,0.00035616,7]
[322444130,1713009040649,-644.79868849,0.00035616,7]
[322444131,1713009040659,-1960.28,0.00035616,7]
[322444132,1713009040668,-1439.69,0.00035616,7]
[322444133,1713009040678,-500.0,0.00035616,7]
[322444134,1713009040687,-994.97,0.00035616,7]
[322444135,1713009040697,-500.0,0.00035616,7]
[322444136,1713009040706,-227.54848399,0.00035616,7]
[322444137,1713009040715,-1229.38,0.00035616,7]
[322444138,1713009040725,-1021.67,0.00035616,7]
[322444139,1713009040735,-500.0,0.00035616,7]
[322444140,1713009040744,-300.0,0.00035616,7]
[322444141,1713009040753,-500.0,0.00035616,7]
[322444142,1713009040763,-500.0,0.00035616,7]
[322444143,1713009040772,-500.0,0.00035616,7]
[322444144,1713009040781,-500.0,0.00035616,7]
[322444145,1713009040791,-701.92,0.00035616,7]
[322444146,1713009040800,-9380.65,0.00035616,7]
[322444147,1713009040810,-576.59,0.00035616,7]
[322444148,1713009040820,-500.0,0.00035616,7]
[322444149,1713009040830,-500.0,0.00035616,7]
[322444150,1713009040840,-500.0,0.00035616,7]
[322444151,1713009040849,-1089.73,0.00035616,7]
[322444152,1713009040859,-643.88,0.00035616,7]
[322444153,1713009040869,-500.0,0.00035616,7]
[322444154,1713009040878,-968.67,0.00035616,7]
[322444155,1713009040888,-30343.83,0.00035616,7]
[322444156,1713009040901,-500.0,0.00035616,7]
[322444157,1713009040910,-500.0,0.00035616,7]
[322444158,1713009040919,-2279.84,0.00035616,7]
[322444159,1713009040928,-500.0,0.00035616,7]
[322444160,1713009040938,-510.0202289,0.00035616,7]
[322444161,1713009040947,-500.0,0.00035616,7]
[322444162,1713009040956,-500.0,0.00035616,7]
[322444163,1713009040966,-919.54,0.00035616,7]
[322444164,1713009040977,-3280.71,0.00035616,7]
[322444165,1713009040986,-500.0,0.00035616,7]
[322444166,1713009040996,-293.18569961,0.00035616,7]
[322444167,1713009041005,-1215.45,0.00035616,7]
[322444168,1713009041014,-1180.72,0.00035616,7]
[322444169,1713009041023,-500.0,0.00035616,7]
[322444170,1713009041032,-2042.54,0.00035616,7]
[322444171,1713009041042,-561.31233867,0.00035616,7]
[322444172,1713009041051,-35960.51904769,0.00035616,5]
[322444173,1713009041062,-52460.1531195,0.00035616,2]
[322444174,1713009041071,-5075.813849,0.00035616,120]
[322444175,1713009041082,-167.56865632,0.0003579,2]
[322444176,1713009041091,-500.0,0.00035889,7]
[322444177,1713009041101,-500.0,0.00035889,7]
[322444178,1713009041110,-303.99,0.00035889,7]
[322444179,1713009041119,-154.98450155,0.0003589,2]
[322444180,1713009041129,-734.28,0.0003589,7]
[322444181,1713009041138,-500.0,0.0003589,7]
[322444182,1713009041147,-500.0,0.0003589,7]
[322444183,1713009041157,-536.82226713,0.0003589,7]
[322444184,1713009041167,-500.0,0.0003589,7]
[322444185,1713009041177,-915.46,0.0003589,7]
[322444186,1713009041188,-500.0,0.0003589,7]
[322444187,1713009041197,-500.0,0.0003589,7]
[322444188,1713009041206,-500.0,0.0003589,7]
[322444189,1713009041216,-503.4515301,0.0003589,7]
[322444190,1713009041225,-1549.62,0.0003589,2]
[322444191,1713009041234,-500.0,0.0003589,7]
[322444192,1713009041244,-2028.34,0.0003589,7]
[322444193,1713009041253,-822.82,0.0003589,7]
[322444194,1713009041263,-1070.14,0.0003589,7]
[322444195,1713009041272,-507.15966959,0.0003589,7]
[322444196,1713009041281,-500.0,0.0003589,7]
[322444197,1713009041290,-500.0,0.0003589,7]
[322444198,1713009041299,-500.0,0.0003589,7]
[322444199,1713009041308,-500.0,0.0003589,7]
[322444200,1713009041318,-500.0,0.0003589,7]
[322444201,1713009041328,-500.0,0.0003589,7]
[322444202,1713009041337,-500.0,0.0003589,7]
[322444203,1713009041346,-500.0,0.0003589,7]
[322444204,1713009041354,-500.0,0.0003589,7]
[322444205,1713009041363,-500.0,0.0003589,7]
[322444206,1713009041372,-500.0,0.0003589,7]
[322444207,1713009041381,-514.42647175,0.0003589,7]
[322444208,1713009041391,-500.0,0.0003589,7]
[322444209,1713009041400,-500.0,0.0003589,7]
[322444210,1713009041409,-500.0,0.0003589,7]
[322444211,1713009041418,-500.0,0.0003589,7]
[322444212,1713009041428,-500.0,0.0003589,7]
[322444213,1713009041437,-500.0,0.0003589,7]
[322444214,1713009041446,-3491.37,0.0003589,7]
[322444215,1713009041455,-505.65981487,0.0003589,7]
[322444216,1713009041464,-532.19,0.0003589,7]
[322444217,1713009041474,-3538.76,0.0003589,7]
[322444218,1713009041483,-500.0,0.0003589,7]
[322444219,1713009041492,-1206.6,0.0003589,7]
[322444220,1713009041502,-500.0,0.0003589,7]
[322444221,1713009041511,-500.0,0.0003589,7]
[322444222,1713009041520,-525.82,0.0003589,7]
[322444223,1713009041530,-645.68,0.0003589,7]
[322444224,1713009041539,-863.53,0.0003589,7]
[322444225,1713009041548,-500.0,0.0003589,7]
[322444226,1713009041558,-500.0,0.0003589,7]
[322444227,1713009041567,-500.0,0.0003589,7]
[322444228,1713009041576,-500.0,0.0003589,7]
[322444229,1713009041585,-503.32067083,0.0003589,7]
[322444230,1713009041594,-507.16326243,0.0003589,7]